bitfinex/quotes_SOLUSD_20260114
["timestamp","ask_amount","ask_price","bid_price","bid_amount"]
[1768349641068,0.31114524,145.39,145.34,7.59410594]
[1768349641379,0.31114524,145.39,145.35,3.17725617]
[1768349641590,0.31114524,145.39,145.35,3.89110068]
[1768349641877,0.70052981,145.39,145.35,0.71384451]
[1768349642177,0.31503908,145.38,145.33,0.71384451]
[1768349642368,16.03229525,145.38,145.33,0.71384451]
[1768349642568,12.85503908,145.38,145.33,0.71384451]
[1768349643165,6.87899841,145.37,145.33,0.71384451]
[1768349643566,6.87899841,145.37,145.34,3.89110068]
[1768349643775,6.87899841,145.37,145.34,0.71384451]
[1768349644876,19.73373813,145.38,145.34,0.71384451]
[1768349645068,19.73373813,145.38,145.34,3.89110068]
[1768349646177,12.54,145.38,145.35,0.68798274]
[1768349646363,17.19327376,145.41,145.37,0.68798274]
[1768349646563,6.87773531,145.4,145.37,0.68798274]
[1768349647279,6.87773531,145.4,145.36,0.68798274]
[1768349647474,7.54467427,145.4,145.36,0.68798274]
[1768349648379,0.34829402,145.39,145.35,3.17725617]
[1768349648685,0.34829402,145.39,145.35,3.86523891]
[1768349648874,0.34829402,145.39,145.35,0.68798274]
[1768349649182,0.34829402,145.39,145.35,3.86523891]
[1768349649878,6.87852524,145.38,145.35,0.68798274]
[1768349650880,19.76650897,145.39,145.35,0.68798274]
[1768349651674,0.66375251,145.38,145.34,2.03360636]
[1768349651867,0.66375251,145.38,145.34,0.68798274]
[1768349652071,7.54235246,145.38,145.34,0.68798274]
[1768349652464,6.87859995,145.38,145.35,0.68798274]
[1768349652665,19.4182424,145.39,145.35,0.68798274]
[1768349652979,19.4182424,145.39,145.35,2.7215891]
[1768349653183,20.08518136,145.39,145.35,2.7215891]
[1768349653365,20.08518136,145.39,145.35,0.68798274]
[1768349653564,20.08518136,145.39,145.35,2.7215891]
[1768349654382,0.34829402,145.38,145.34,8.9139967]
[1768349654768,0.34829402,145.38,145.34,9.60197944]
[1768349655586,0.34829402,145.38,145.34,2.7215891]
[1768349656288,7.22683314,145.38,145.34,2.7215891]
[1768349656472,7.22683314,145.38,145.34,0.68798274]
[1768349656672,7.22683314,145.38,145.34,2.7215891]
[1768349658264,0.66375251,145.37,145.34,2.03360636]
[1768349658885,7.57956771,145.38,145.34,2.72483747]
[1768349659692,0.31454529,145.37,145.33,2.03360636]
[1768349660185,0.31454529,145.37,145.33,2.72483747]
[1768349660394,7.19373199,145.37,145.33,2.72483747]
[1768349661887,7.19373199,145.37,145.33,9.60569389]
[1768349662072,7.19373199,145.37,145.34,0.69123111]
[1768349662267,7.19373199,145.37,145.3,17.20532341]
[1768349662268,0.69716376,145.36,145.31,0.69123111]
[1768349662474,0.31837147,145.35,145.3,2.03360636]
[1768349662695,0.31837147,145.35,145.3,2.72483747]
[1768349663597,0.69337584,145.34,145.3,0.69123111]
[1768349663893,0.32212151,145.33,145.29,9.60736188]
[1768349664373,0.32212151,145.33,145.29,2.03360636]
[1768349664971,0.6896633,145.32,145.28,0.1]
[1768349665493,0.68602463,145.3,145.26,0.69123111]
[1768349665993,7.56870179,145.3,145.26,2.72483747]
[1768349666599,7.56870179,145.3,145.26,0.69123111]
[1768349667274,7.56870179,145.3,145.26,2.72483747]
[1768349668492,7.56870179,145.3,145.26,0.69123111]
[1768349669111,6.88267716,145.3,145.27,0.69123111]
[1768349671903,7.19722245,145.3,145.27,0.69123111]
[1768349672390,6.88267716,145.3,145.27,0.69123111]
[1768349673012,7.57984092,145.3,145.26,0.69123111]
[1768349673693,9.61344728,145.3,145.26,0.69123111]
[1768349673905,7.57984092,145.3,145.26,0.69123111]
[1768349674283,0.31837147,145.29,145.25,0.69123111]
[1768349675005,6.88267716,145.3,145.25,0.69123111]
[1768349675307,7.5364712,145.3,145.26,0.68094683]
[1768349678505,19.23913601,145.31,145.27,0.68094683]
[1768349678506,7.53583088,145.31,145.27,0.68094683]
[1768349678799,6.88203684,145.31,145.27,0.68094683]
[1768349679014,111.08146999,145.32,145.29,0.68094683]
[1768349679205,6.88146999,145.32,145.29,0.68094683]
[1768349680083,7.24277748,145.32,145.28,0.68094683]
[1768349680286,0.65086918,145.31,145.27,0.68094683]
[1768349680595,7.53526403,145.32,145.27,0.68094683]
[1768349681186,2.68447554,145.3,145.26,0.68094683]
[1768349681887,6.88278615,145.29,145.26,0.68094683]
[1768349684693,0.64800252,145.28,145.24,0.78094683]
[1768349684905,2.68160888,145.28,145.24,0.78094683]
[1768349685411,0.3670411,145.27,145.24,0.78094683]
[1768349686006,6.88420762,145.26,145.24,0.78094683]
[1768349686694,6.88392692,145.27,145.24,0.78094683]
[1768349686917,6.88392692,145.27,145.24,0.1]
[1768349687418,7.53772096,145.27,145.24,0.1]
[1768349688233,7.24475406,145.28,145.24,0.78094683]
[1768349689615,0.65086918,145.27,145.24,0.1]
[1768349691402,0.65086918,145.27,145.24,0.78094683]
[1768349691612,7.53724061,145.28,145.24,0.78094683]
[1768349692208,24.74539038,145.28,145.24,0.78094683]
[1768349692408,0.36130749,145.27,145.24,0.1]
[1768349693521,6.88420762,145.26,145.24,0.1]
[1768349696526,0.36130749,145.27,145.21,9.01996249]
[1768349696527,2.39780947,145.25,145.21,0.78094683]
[1768349697208,14.93780947,145.25,145.21,0.78094683]
[1768349697408,14.90780947,145.25,145.21,0.78094683]
[1768349698629,6.8851556,145.24,145.21,0.78094683]
[1768349700528,19.42481356,145.25,145.21,0.78094683]
[1768349701333,19.75642105,145.25,145.21,0.78094683]
[1768349702632,21.79002741,145.25,145.21,0.78094683]
[1768349704025,19.75642105,145.25,145.21,0.78094683]
[1768349704337,21.79002741,145.25,145.21,0.78094683]
[1768349704528,19.75642105,145.25,145.21,0.78094683]
[1768349705430,19.74117353,145.25,145.21,0.78094683]
[1768349706816,106.90280194,145.28,145.22,0.65950103]
[1768349707018,104.2,145.28,145.24,0.65950103]
[1768349708034,111.08329088,145.28,145.24,0.65950103]
[1768349708215,4.58494557,145.27,145.24,0.65950103]
[1768349708416,111.08329088,145.28,145.24,0.65950103]
[1768349708625,4.58428464,145.27,145.24,0.65950103]
[1768349708918,8.4153148,145.31,145.26,0.65950103]
[1768349709234,4.58336721,145.3,145.26,0.65950103]
[1768349709435,4.58336721,145.29,145.26,0.65950103]
[1768349709637,2.34996633,145.32,145.28,0.65950103]
[1768349709946,14.88996633,145.32,145.28,0.65950103]
[1768349710238,6.88197258,145.31,145.28,0.65950103]
[1768349710739,19.73790508,145.32,145.28,0.65950103]
[1768349710940,21.77151144,145.32,145.28,0.65950103]
[1768349711116,19.42154511,145.32,145.28,0.65950103]
[1768349711516,13.05750639,145.33,145.29,0.65950103]
[1768349711736,7.34499353,145.33,145.29,0.65950103]
[1768349711930,0.46399998,145.33,145.29,0.65950103]
[1768349712528,7.34498979,145.33,145.29,0.65950103]
[1768349713041,0.46399998,145.33,145.3,0.65950103]
[1768349713445,0.46399998,145.33,145.31,0.65950103]
[1768349716942,0.46399998,145.33,145.3,3.17931601]
[1768349717147,0.46399998,145.33,145.3,3.83881704]
[1768349717446,0.46399998,145.33,145.3,0.65950103]
[1768349718550,1.15959909,145.33,145.3,0.65950103]
[1768349719232,1.15959909,145.33,145.3,7.54169656]
[1768349720137,1.15959909,145.33,145.3,10.72101257]
[1768349721848,1.15959909,145.33,145.3,0.65950103]
[1768349722030,1.15959909,145.33,145.29,10.06190474]
[1768349722031,0.69559911,145.32,145.28,3.89892787]
[1768349722347,0.69559911,145.32,145.28,0.71961186]
[1768349722731,0.69559911,145.32,145.28,10.78214315]
[1768349723124,0.69559911,145.32,145.29,3.17931601]
[1768349723328,0.69559911,145.32,145.28,7.60282714]
[1768349723646,0.69559911,145.32,145.28,10.78214315]
[1768349724046,0.69559911,145.32,145.29,0.71961186]
[1768349724242,0.46399998,145.33,145.3,3.89892787]
[1768349724447,6.40811197,145.39,145.33,0.71961186]
[1768349724634,7.57337721,145.4,145.36,3.89892787]
[1768349725152,0.69559911,145.39,145.35,3.89892787]
[1768349725551,0.69559911,145.41,145.37,3.17931601]
[1768349725753,0.69559911,145.41,145.38,3.17931601]
[1768349726743,0.69559911,145.41,145.38,10.05776461]
[1768349727054,6.87630563,145.43,145.38,10.05776461]
[1768349727055,0.69559911,145.43,145.39,3.89892787]
[1768349728138,0.69559911,145.43,145.39,10.7769346]
[1768349728640,0.69559911,145.43,145.4,3.17931601]
[1768349729049,0.69559911,145.43,145.39,7.59761859]
[1768349729050,0.69559911,145.43,145.39,10.7769346]
[1768349729254,19.6153227,145.45,145.41,3.89892787]
[1768349729255,0.89559911,145.45,145.41,3.89892787]
[1768349729433,0.89559911,145.45,145.42,3.17931601]
[1768349729642,0.2,145.45,145.42,3.89892787]
[1768349730959,0.2,145.45,145.42,10.77549527]
[1768349731943,0.2,145.45,145.42,3.89892787]
[1768349733266,0.2,145.45,145.42,10.77550701]
[1768349734259,0.2,145.45,145.43,3.89892787]
[1768349734461,0.2,145.45,145.43,0.71961186]
[1768349734954,0.2,145.45,145.43,3.89892787]
[1768349735543,0.2,145.45,145.43,10.77503529]
[1768349735751,1.11799998,145.48,145.45,0.69574992]
[1768349736062,1.11799998,145.48,145.45,3.87506593]
[1768349736439,0.39299998,145.48,145.47,0.69574992]
[1768349736644,0.1,145.5,145.47,10.68895708]
[1768349736856,0.1,145.5,145.48,3.17931601]
[1768349737259,0.9023746,145.51,145.47,7.50964107]
[1768349737260,0.9023746,145.51,145.49,3.17931601]
[1768349737458,0.2,145.51,145.5,3.17931601]
[1768349737642,0.7023746,145.53,145.5,3.17931601]
[1768349737845,0.8023746,145.55,145.5,3.17931601]
[1768349738059,0.7023746,145.54,145.51,3.17931601]
[1768349738258,0.1,145.55,145.51,3.17931601]
[1768349738467,0.8023746,145.55,145.51,3.17931601]
[1768349738661,0.8023746,145.55,145.51,10.05124718]
[1768349738844,0.8023746,145.55,145.52,3.17931601]
[1768349739259,0.1,145.55,145.52,3.17931601]
[1768349739443,0.1,145.55,145.53,3.17931601]
[1768349739639,0.2,145.56,145.54,3.17931601]
[1768349740044,0.7023746,145.55,145.5,6.90995113]
[1768349740253,0.7023746,145.55,145.49,19.39299342]
[1768349740473,0.7023746,145.55,145.49,6.87299637]
[1768349740646,0.7023746,145.54,145.5,10.0521286]
[1768349740976,0.7023746,145.54,145.49,6.91040857]
[1768349741147,0.7023746,145.54,145.5,3.17931601]
[1768349741756,0.7023746,145.5,145.45,3.17931601]
[1768349741963,0.7023746,145.5,145.43,0.03724893]
[1768349741964,0.7023746,145.49,145.43,3.17931601]
[1768349742167,0.7023746,145.47,145.4,6.87747682]
[1768349742372,0.7023746,145.45,145.4,10.05679283]
[1768349742555,0.7023746,145.44,145.38,6.91547383]
[1768349742751,7.57894389,145.43,145.38,3.17931601]
[1768349742946,0.7023746,145.42,145.38,3.17931601]
[1768349743169,7.57821947,145.44,145.39,3.17931601]
[1768349743370,7.57821947,145.44,145.38,6.91567927]
[1768349743545,7.57821947,145.44,145.39,3.17931601]
[1768349743745,0.7023746,145.44,145.39,3.17931601]
[1768349744342,7.57806508,145.44,145.39,3.17931601]
[1768349744548,7.57806508,145.44,145.36,29.71797602]
[1768349744549,0.7023746,145.43,145.37,6.87887646]
[1768349744869,3.88169061,145.43,145.37,6.91624734]
[1768349745562,0.7023746,145.46,145.4,3.21656494]
[1768349745756,3.88169061,145.46,145.4,3.21656494]
[1768349746147,3.88169061,145.46,145.4,0.03724893]
[1768349746351,3.88169061,145.48,145.42,0.03724893]
[1768349746551,3.88169061,145.48,145.43,0.03724893]
[1768349746948,3.88169061,145.48,145.43,6.91340928]
[1768349747563,3.88169061,145.48,145.39,17.23206338]
[1768349747564,0.7023746,145.47,145.39,17.23206338]
[1768349747776,3.88169061,145.46,145.4,3.21656494]
[1768349748266,0.7023746,145.46,145.41,3.21656494]
[1768349748457,3.88169061,145.48,145.43,0.03724893]
[1768349748657,0.7023746,145.48,145.43,0.03724893]
[1768349749194,7.57630762,145.48,145.43,6.9130125]
[1768349749664,104.2,145.52,145.43,6.9130125]
[1768349749665,0.7023746,145.5,145.45,0.03724893]
[1768349749982,104.2,145.52,145.46,0.03724893]
[1768349749983,108.08169061,145.52,145.46,0.03724893]
[1768349750175,0.7023746,145.51,145.46,0.03724893]
[1768349750861,7.57487686,145.51,145.45,10.05415474]
[1768349751373,10.75419287,145.51,145.45,0.03724893]
[1768349751557,0.7023746,145.5,145.45,0.03724893]
[1768349752373,0.7023746,145.49,145.44,3.17931601]
[1768349752672,0.7023746,145.47,145.43,6.87598694]
[1768349754476,0.7023746,145.47,145.42,6.87649116]
[1768349754987,0.7023746,145.45,145.39,6.6801107]
[1768349755173,0.7023746,145.45,145.4,6.87739408]
[1768349755881,0.7023746,145.45,145.4,10.05671009]
[1768349757176,0.7023746,145.45,145.39,19.39788931]
[1768349757177,0.7023746,145.44,145.39,19.39788931]
[1768349757768,0.7023746,145.44,145.39,19.43513824]
[1768349758283,0.7023746,145.44,145.39,22.61445425]
[1768349758672,0.7023746,145.44,145.39,39.80958458]
[1768349759459,0.7023746,145.44,145.39,24.11026857]
[1768349759680,0.7023746,145.41,145.37,6.87884326]
[1768349759894,0.7023746,145.41,145.38,6.87851109]
[1768349760379,0.7023746,145.41,145.36,0.03724893]
[1768349760589,3.88169061,145.4,145.35,6.87966366]
[1768349760788,3.88169061,145.39,145.34,0.03724893]
[1768349760980,3.88169061,145.37,145.33,6.88061429]
[1768349761171,0.7023746,145.36,145.3,32.94176206]
[1768349762065,0.7023746,145.36,145.31,6.88183882]
[1768349762576,0.7023746,145.36,145.31,24.08643588]
[1768349762774,0.7023746,145.36,145.31,27.26575189]
[1768349763178,0.7023746,145.36,145.31,24.08643588]
[1768349763772,0.7023746,145.36,145.31,24.12368481]
[1768349764095,0.7023746,145.36,145.31,32.55637813]
[1768349764388,0.7023746,145.36,145.32,8.43269332]
[1768349764584,0.7023746,145.36,145.31,32.55637813]
[1768349765087,7.58192512,145.36,145.31,6.88183882]
[1768349765300,0.6792301,145.34,145.29,20.98994225]
[1768349765588,0.6792301,145.34,145.3,6.88225291]
[1768349765791,0.6792301,145.36,145.31,0.03724893]
[1768349766280,9.11192342,145.36,145.31,0.03724893]
[1768349766487,0.6792301,145.35,145.3,32.52072737]
[1768349766694,0.6792301,145.33,145.3,6.88225291]
[1768349767192,0.6792301,145.33,145.28,6.88293387]
[1768349767404,0.6792301,145.3,145.26,6.88390563]
[1768349767696,0.6792301,145.29,145.26,6.88390563]
[1768349767998,9.11192342,145.31,145.26,6.88390563]
[1768349768165,0.6792301,145.3,145.26,6.88390563]
[1768349768674,0.6792301,145.32,145.27,8.43269332]
[1768349770366,0.6792301,145.34,145.29,8.43269332]
[1768349770590,0.6792301,145.34,145.3,6.88231245]
[1768349771269,0.6792301,145.33,145.29,6.88263672]
[1768349771469,0.6792301,145.32,145.26,8.43269332]
[1768349771678,9.11192342,145.32,145.27,6.88358578]
[1768349771985,0.6792301,145.31,145.26,19.40402473]
[1768349772186,0.6792301,145.31,145.27,6.88353099]
[1768349772776,0.6792301,145.31,145.26,38.16259734]
[1768349773089,0.6792301,145.33,145.27,8.46994225]
[1768349773489,0.6792301,145.33,145.27,32.56301032]
[1768349773678,0.6792301,145.33,145.28,8.43269332]
[1768349774180,8.43269332,145.33,145.27,32.52576139]
[1768349774369,0.6792301,145.32,145.27,32.52576139]
[1768349775381,0.6792301,145.32,145.27,29.28508886]
[1768349775583,0.6792301,145.31,145.26,6.88401367]
[1768349775797,0.6792301,145.31,145.26,19.40401367]
[1768349776190,0.6792301,145.3,145.26,19.40401367]
[1768349776882,0.6792301,145.3,145.26,6.88401367]
[1768349777713,0.72209704,145.29,145.25,0.2]
[1768349778008,0.72209704,145.28,145.25,0.2]
[1768349779502,0.72209704,145.27,145.21,0.1]
[1768349779813,5.91411783,145.26,145.21,0.33724893]
[1768349779979,0.72209704,145.26,145.21,5.52926972]
[1768349780279,0.72209704,145.26,145.21,0.33724893]
[1768349780703,0.69209701,145.26,145.22,6.88589704]
[1768349781780,12.07623795,145.26,145.21,6.98640899]
[1768349781985,5.19202079,145.25,145.21,0.1]
[1768349782600,0.72209704,145.24,145.21,0.1]
[1768349782983,0.72209704,145.24,145.21,6.98645621]
[1768349783389,0.72209704,145.24,145.18,6.88771016]
[1768349783390,0.72209704,145.22,145.18,6.88771016]
[1768349784290,0.72209704,145.22,145.16,12.90724896]
[1768349784291,0.72209704,145.21,145.16,12.90724896]
[1768349784491,5.91411783,145.21,145.16,19.79584061]
[1768349784691,24.09829934,145.24,145.16,0.1]
[1768349784692,0.72209704,145.18,145.16,0.1]
[1768349784897,0.692097,145.18,145.16,0.1]
[1768349785093,5.88411779,145.18,145.16,0.1]
[1768349785391,12.77219389,145.18,145.16,0.1]
[1768349785595,12.08009689,145.18,145.16,0.1]
[1768349785900,5.19202079,145.18,145.16,0.1]
[1768349786297,5.19202079,145.19,145.16,0.1]
[1768349786804,0.72209704,145.18,145.16,0.1]
[1768349787322,0.72209704,145.17,145.16,0.1]
[1768349787803,6.88756055,145.19,145.16,0.1]
[1768349787804,0.72209704,145.19,145.16,0.1]
[1768349788004,12.07920759,145.2,145.16,0.1]
[1768349788402,5.91411783,145.18,145.16,0.1]
[1768349788717,0.72209704,145.18,145.16,0.1]
[1768349790211,6.8871868,145.2,145.16,0.1]
[1768349790212,0.72209704,145.2,145.16,0.1]
[1768349790718,0.72209704,145.19,145.16,0.1]
[1768349791597,0.69209704,145.19,145.16,0.1]
[1768349792312,5.88411783,145.19,145.16,0.1]
[1768349792518,5.19202079,145.19,145.16,0.1]
[1768349793603,5.91411783,145.19,145.16,0.1]
[1768349794317,12.80195723,145.19,145.16,0.1]
[1768349794814,5.91411783,145.19,145.16,0.1]
[1768349795397,2.76131156,145.19,145.16,0.1]
[1768349795601,0.72209704,145.19,145.16,0.1]
[1768349796003,0.69209704,145.19,145.16,0.1]
[1768349796814,7.57971835,145.19,145.16,0.1]
[1768349797123,9.61893287,145.19,145.16,0.1]
[1768349797423,0.69209704,145.19,145.16,0.1]
[1768349798523,9.618866,145.19,145.16,0.1]
[1768349799018,2.73131156,145.19,145.16,0.1]
[1768349799528,9.61895112,145.19,145.16,0.1]
[1768349799712,2.73131156,145.19,145.16,0.1]
[1768349800230,0.69209704,145.19,145.16,0.1]
[1768349801228,0.69162527,145.18,145.16,0.1]
[1768349801826,0.66162527,145.18,145.16,0.1]
[1768349802403,17.21475719,145.23,145.16,6.98876187]
[1768349802729,8.9254858,145.22,145.16,6.98876187]
[1768349803310,2.03921452,145.21,145.16,6.98876187]
[1768349803614,8.92585801,145.21,145.16,6.98876187]
[1768349803821,0.69162527,145.18,145.16,0.1]
[1768349804024,0.66162525,145.18,145.16,0.1]
[1768349805029,2.03921452,145.2,145.16,6.98884226]
[1768349805828,6.88630718,145.22,145.16,6.98884226]
[1768349806151,0.69162527,145.2,145.16,6.98884226]
[1768349807123,2.73083979,145.2,145.16,6.98884226]
[1768349807324,2.73083979,145.2,145.16,7.50609128]
[1768349808334,9.6179182,145.2,145.16,6.98884226]
[1768349808634,2.73083979,145.2,145.16,6.98884226]
[1768349809731,0.69162527,145.19,145.16,0.1]
[1768349810631,0.69162527,145.19,145.16,6.9888699]
[1768349812341,9.61760499,145.21,145.16,7.50611892]
[1768349812834,0.69162527,145.2,145.16,7.50611892]
[1768349813631,2.73083979,145.2,145.16,7.50611892]
[1768349820049,2.73083979,145.21,145.17,0.51724902]
[1768349820349,0.69162527,145.21,145.17,0.51724902]
[1768349820644,0.69162527,145.24,145.2,0.51724902]
[1768349820849,0.69162527,145.24,145.19,0.51724902]
[1768349821147,0.69162527,145.23,145.19,0.51724902]
[1768349821344,0.69162527,145.2,145.17,12.54]
[1768349821942,0.69162527,145.19,145.17,12.54]
[1768349822246,0.69162527,145.18,145.16,0.1]
[1768349822450,0.69162527,145.16,145.15,0.1]
[1768349822746,2.03921452,145.16,145.13,0.1]
[1768349822926,2.03921452,145.18,145.13,0.1]
[1768349823126,2.03921452,145.15,145.13,0.1]
[1768349823644,2.03921452,145.14,145.12,0.1]
[1768349823843,2.03921452,145.18,145.1,0.1]
[1768349823844,2.03921452,145.13,145.1,0.1]
[1768349824046,2.03921452,145.12,145.1,0.1]
[1768349824552,2.73083979,145.12,145.1,0.1]
[1768349825432,0.69162527,145.12,145.1,0.1]
[1768349825928,2.73083979,145.12,145.1,0.1]
[1768349827751,9.6217087,145.12,145.1,0.1]
[1768349827931,2.73713802,145.11,145.09,0.1]
[1768349828835,0.6979235,145.11,145.09,0.1]
[1768349829045,2.73713802,145.11,145.09,0.1]
[1768349830136,2.73713802,145.1,145.07,0.1]
[1768349830453,0.6979235,145.07,145.04,0.1]
[1768349830754,26.15885388,145.11,145.04,0.1]
[1768349830755,2.73713802,145.06,145.04,0.1]
[1768349832957,0.6979235,145.06,145.04,0.1]
[1768349834358,2.73713802,145.1,145.05,0.67222241]
[1768349835752,0.6979235,145.1,145.05,0.67222241]
[1768349835961,2.73713802,145.1,145.05,0.67222241]
[1768349836254,2.73713802,145.1,145.06,6.89369915]
[1768349836644,0.71131765,145.12,145.07,0.71769865]
[1768349836842,2.75053217,145.12,145.07,0.71769865]
[1768349837045,2.75053217,145.14,145.08,0.71769865]
[1768349837355,3.90007307,145.14,145.08,0.71769865]
[1768349837744,3.90007307,145.13,145.08,0.71769865]
[1768349837944,0.71131765,145.13,145.09,6.89227376]
[1768349838146,3.90007307,145.13,145.09,6.89227376]
[1768349838463,0.71131765,145.12,145.08,7.61028895]
[1768349838964,3.90007307,145.12,145.08,7.61028895]
[1768349839766,0.71131765,145.12,145.08,7.61028895]
[1768349840058,3.90007307,145.14,145.1,7.6094974]
[1768349840267,0.71131765,145.14,145.1,7.6094974]
[1768349842056,0.71131765,145.16,145.11,0.71769865]
[1768349842362,1.16631766,145.17,145.11,0.71769865]
[1768349842552,0.45500001,145.17,145.13,0.71769865]
[1768349843550,1.16631766,145.17,145.13,0.71769865]
[1768349843746,4.35507308,145.17,145.13,0.71769865]
[1768349844660,0.45500001,145.17,145.14,7.60759805]
[1768349845954,0.71131765,145.2,145.15,3.90645407]
[1768349846342,0.71131765,145.2,145.15,0.71769865]
[1768349846538,0.71131765,145.2,145.16,6.88895012]
[1768349848458,0.71131765,145.16,145.07,0.71769865]
[1768349848655,3.90007307,145.12,145.07,0.71769865]
[1768349849471,9.17293728,145.12,145.07,7.61077565]
[1768349849767,0.71131765,145.12,145.07,7.61077565]
[1768349850153,0.71131765,145.14,145.09,0.71769865]
[1768349850351,0.71131765,145.14,145.1,0.71769865]
[1768349850956,0.68131765,145.14,145.1,0.71769865]
[1768349851967,0.68131765,145.14,145.1,7.60942006]
[1768349852269,8.46161963,145.17,145.11,0.71769865]
[1768349852771,15.35025832,145.17,145.11,0.71769865]
[1768349852973,7.59995634,145.17,145.11,0.71769865]
[1768349853288,16.06157597,145.17,145.11,0.71769865]
[1768349853770,16.06157597,145.17,145.12,7.6085476]
[1768349853972,104.2,145.21,145.12,7.6085476]
[1768349853973,16.06083811,145.19,145.13,13.25769865]
[1768349854177,16.06083811,145.19,145.14,0.71769865]
[1768349855071,16.06083811,145.19,145.13,12.54]
[1768349855072,0.70262597,145.18,145.13,12.54]
[1768349855277,0.70262597,145.18,145.13,13.26210109]
[1768349855455,9.1642456,145.18,145.13,13.26210109]
[1768349855857,0.70262597,145.17,145.11,7.61325043]
[1768349856066,15.34985234,145.18,145.11,19.43114934]
[1768349856067,0.70262597,145.15,145.11,19.43114934]
[1768349856564,0.70262597,145.15,145.11,6.89114934]
[1768349857159,9.1642456,145.14,145.1,19.43170019]
[1768349857677,9.1642456,145.14,145.1,6.89170019]
[1768349858580,0.70262597,145.12,145.07,0.72210109]
[1768349858780,0.70262597,145.12,145.08,6.8924739]
[1768349861869,0.70262597,145.13,145.08,7.61457499]
[1768349862467,0.70262597,145.13,145.09,0.72210109]
[1768349862776,0.70262597,145.11,145.06,0.72210109]
[1768349862975,16.05561206,145.11,145.06,7.61567567]
[1768349863563,16.05561206,145.11,145.05,6.89396733]
[1768349863564,0.70262597,145.1,145.05,6.89396733]
[1768349863760,7.59361183,145.12,145.07,0.72210109]
[1768349863965,0.46399998,145.24,145.1,0.72210109]
[1768349863966,0.70262597,145.16,145.1,0.72210109]
[1768349864187,0.70262597,145.16,145.11,0.72210109]
[1768349864686,9.1642456,145.18,145.13,0.72210109]
[1768349864870,0.70262597,145.18,145.13,0.72210109]
[1768349865187,9.1642456,145.19,145.14,0.72210109]
[1768349865886,0.70262597,145.18,145.14,0.72210109]
[1768349867165,0.70262597,145.18,145.14,7.61198128]
[1768349867474,0.70262597,145.18,145.14,0.72210109]
[1768349867673,0.70262597,145.18,145.13,6.89017265]
[1768349867874,7.59066725,145.18,145.13,7.61227374]
[1768349868490,16.05228688,145.18,145.13,7.61227374]
[1768349868696,0.70262597,145.13,145.06,0.72210109]
[1768349868987,0.70262597,145.06,145.01,1e-08]
[1768349869172,8.46161963,145.02,145.01,1e-08]
[1768349869375,0.70262597,145.03,145.01,1e-08]
[1768349869572,0.70262597,145.05,145.01,1e-08]
[1768349869765,9.1642456,145.05,145.01,1e-08]
[1768349869970,9.1642456,145.09,145.03,0.72210109]
[1768349870377,0.70262597,145.09,145.03,9.18372072]
[1768349870578,9.1642456,145.09,145.04,6.89464975]
[1768349870989,16.05660614,145.09,145.03,7.61707997]
[1768349871170,9.1642456,145.08,145.03,7.61707997]
[1768349871369,9.1642456,145.06,145.01,0.7221011]
[1768349871572,24.12304494,145.09,145.01,1e-08]
[1768349871573,9.1642456,145.05,145.01,1e-08]
[1768349871966,0.70262597,145.02,145.01,1e-08]
[1768349872387,9.1642456,145.04,145.01,1e-08]
[1768349872586,0.70262597,145.04,145.01,1e-08]
[1768349873390,9.1642456,145.05,145.01,1e-08]
[1768349873989,16.05846083,145.05,145.01,1e-08]
[1768349874183,0.70262597,145.07,145.02,0.72210109]
[1768349874501,9.1642456,145.07,145.02,7.61746132]
[1768349875093,0.70262597,145.07,145.02,7.61746132]
[1768349875501,9.1642456,145.07,145.02,7.61746132]
[1768349875896,9.1642456,145.07,145.01,1e-08]
[1768349875897,0.70262597,145.02,145.01,1e-08]
[1768349876200,0.70262597,145.02,144.95,38.50233728]
[1768349876201,8.46161963,145.02,144.95,38.50233728]
[1768349876399,8.46161963,144.98,144.95,0.1]
[1768349876606,16.06206701,144.98,144.95,0.1]
[1768349876834,8.46161963,144.97,144.95,0.1]
[1768349877006,7.60044738,144.98,144.95,0.1]
[1768349877209,15.35876862,144.99,144.95,0.1]
[1768349877510,16.06139459,144.99,144.95,0.1]
[1768349877695,8.46161963,144.98,144.95,0.1]
[1768349877895,0.70262597,144.96,144.94,0.1]
[1768349878089,0.6726259,144.96,144.94,0.1]
[1768349878485,9.13424553,144.96,144.94,1e-08]
[1768349878782,32.60787695,144.95,144.87,0.72210109]
[1768349879003,8.46161963,144.9,144.84,0.72210109]
[1768349879206,8.46161963,144.91,144.85,0.72210109]
[1768349879385,8.46161963,144.92,144.86,0.72210109]
[1768349880003,0.70262597,144.9,144.84,27.9254153]
[1768349880406,9.1642456,144.9,144.84,12.56]
[1768349880585,16.06585897,144.9,144.84,12.56]
[1768349880785,9.1642456,144.89,144.84,12.56]
[1768349880989,0.70262597,144.87,144.82,13.73949379]
[1768349881188,7.60354593,144.91,144.84,0.72210109]